Workbook

Sheet DATA SISWA
A1: PROFIL SEKOLAH | J1: made by Chusni Kurniawan
B2: NAMA SATUAN PENDIDIKAN | D2: : | E2: MI NURUL ISLAM LABRUK KIDUL | J2: (c.kurniawan@ymail.com)
B3: KEPALA MADRASAH | D3: : | E3: SAHRONI,S.Pd.I
B4: KELAS | D4: : | E4: IV (EMPAT) A | L4: =B4&" "&E4 -> KELAS IV (EMPAT) A
B5: WALI KELAS | D5: : | E5: CHUSNI KURNIAWAN,S.Pd. | L5: =B5&" "&E4 -> WALI KELAS IV (EMPAT) A
B6: SEMESTER | D6: : | E6: II (GENAP) | K6: =B6&" "&E6 -> SEMESTER II (GENAP) | L6: =E8&" "&E6 -> UJIAN TENGAH SEMESTER II (GENAP) | M6: I (SATU) A | N6: UJIAN SEMESTER | O6: 2014/2015 | P6: I (GANJIL)
B7: TAHUN PELAJARAN | D7: : | E7: 2017/2018 | L7: =B7&" "&E7 -> TAHUN PELAJARAN 2017/2018 | M7: I (SATU) B | N7: UJIAN TENGAH SEMESTER | O7: 2015/2016 | P7: II (GENAP)
B8: JUDUL RAPORT | D8: : | E8: UJIAN TENGAH SEMESTER | M8: II (DUA) A | O8: 2016/2017
B9: Tempat&Tgl PENERIMAAN RAPOR | D9: : | E9: Labruk kidul, 28 April 2018 | M9: II (DUA) B | O9: 2017/2018
M10: III (TIGA) A | O10: 2018/2019
A11: NO | B11: NISN | C11: NO.INDUK | D11: NAMA SISWA | E11: NAMA PANGGILAN | F11: TEMPAT LAHIR | G11: TANGGAL LAHIR | H11: NAMA ORTU | I11: PESAN WALI KELAS TERHADAP NILAI (BARIS 1) | J11: PESAN WALI KELAS TERHADAP NILAI (BARIS 2) | K11: rank | M11: III (TIGA) B | O11: 2019/2020
A12: 1 | B12: 2 | C12: 3 | D12: 4 | E12: 5 | F12: 6 | G12: 7 | H12: 8 | I12: 9 | J12: 10 | K12: 11 | L12: 12 | M12: IV (EMPAT) A
A13: 1 | B13: 0078140536 | C13: 4331 | D13: ACHMAD FATHIR IZUDDIN | E13: FATIR | F13: Lumajang | G13: 2007-11-09 | H13: NURUDDIN | I13: =IF(K13>20,"Jangan malas belajar, lebih giat dalam belajar!",IF(K13>10,"Pacu Semangat Belajarmu,& Tingkatkan nilaimu!",IF(K13>1,"Pertahankan Nilaimu, jangan lengah belajar!","Jangan Lengah, terus semangat belajar"))) -> Jangan malas belajar, lebih giat dalam belajar! | J13: - | K13: =VALUE('REKAP NILAI'!AB7) -> 21 | L13: =F13&", "&TEXT(G13,"dd mmmm yyyy") -> Lumajang, 09 November 2007 | M13: IV (EMPAT) B
A14: 2 | B14: 0075656390 | C14: 4361 | D14: ACHMAD SEPTIAN HAMDANI | E14: DANI | F14: LUMAJANG | G14: 2007-09-10 | H14: SYAIFUL ARIS | I14: =IF(K14>20,"Jangan malas belajar, lebih giat dalam belajar!",IF(K14>10,"Pacu Semangat Belajarmu,& Tingkatkan nilaimu!",IF(K14>1,"Pertahankan Nilaimu, jangan lengah belajar!","Jangan Lengah, terus semangat belajar"))) -> Jangan malas belajar, lebih giat dalam belajar! | J14: - | K14: =VALUE('REKAP NILAI'!AB8) -> 30 | L14: =F14&", "&TEXT(G14,"dd mmmm yyyy") -> LUMAJANG, 10 September 2007 | M14: V (LIMA) A
A15: 3 | B15: 0071796138 | C15: 4362 | D15: ACHMAD SULAIMAN | E15: SULAIMAN | F15: LUMAJANG | G15: 2007-07-26 | H15: AGUS SULAIMAN | I15: Jangan malas belajar, lebih giat dalam belajar! | J15: - | K15: =VALUE('REKAP NILAI'!AB9) -> 33 | L15: LUMAJANG, 26 Juli 2007 | M15: V (LIMA) B
A16: 4 | B16: 0084691896 | C16: 4333 | D16: AININ NAFISA FEBRIYANTI | E16: AININ | F16: Lumajang | G16: 2008-02-12 | H16: SUBOWO | I16: Pertahankan Nilaimu, jangan lengah belajar! | J16: - | K16: =VALUE('REKAP NILAI'!AB10) -> 6 | L16: Lumajang, 12 Februari 2008 | M16: VI (ENAM) A
A17: 5 | B17: 0075488897 | C17: 4334 | D17: AISYAH DWI ANDINI | E17: ANDIN | F17: Lumajang | G17: 2007-09-30 | H17: SAIFUL ANAM | I17: Pertahankan Nilaimu, jangan lengah belajar! | J17: - | K17: =VALUE('REKAP NILAI'!AB11) -> 2 | L17: Lumajang, 30 September 2007 | M17: VI (ENAM) B
A18: 6 | C18: 4335 | D18: AJENG AGUSTINA KIRANA PUTRI | E18: AJENG | F18: HANAU | G18: 2007-07-31 | H18: SUKIRNO | I18: Pertahankan Nilaimu, jangan lengah belajar! | J18: - | K18: =VALUE('REKAP NILAI'!AB12) -> 7 | L18: HANAU, 31 Juli 2007
A19: 7 | B19: 0078831956 | C19: 4336 | D19: ALVIAN FAIZULHAQQI | E19: VIAN | F19: Lumajang | G19: 2007-05-20 | H19: MUKHAMAD FAUZI | I19: Pacu Semangat Belajarmu,& Tingkatkan nilaimu! | J19: - | K19: =VALUE('REKAP NILAI'!AB13) -> 11 | L19: Lumajang, 20 Mei 2007
A20: 8 | B20: 0073667130 | C20: 4337 | D20: ANGGITA RIZKY YUGA MEISYA | E20: ANGGI | F20: Lumajang | G20: 2007-05-31 | H20: GALIH DWI APRIYANTO | I20: Pertahankan Nilaimu, jangan lengah belajar! | J20: - | K20: =VALUE('REKAP NILAI'!AB14) -> 5 | L20: Lumajang, 31 Mei 2007
A21: 9 | B21: 0089321127 | C21: 4365 | D21: AUFAN AZKAL ABRORI | E21: OVAN | F21: LUMAJANG | G21: 2008-05-16 | H21: AHMAD AJMAIN | I21: Pacu Semangat Belajarmu,& Tingkatkan nilaimu! | J21: - | K21: =VALUE('REKAP NILAI'!AB15) -> 18 | L21: LUMAJANG, 16 Mei 2008
A22: 10 | B22: 0074492973 | C22: 4338 | D22: AURA SALSABILA WULAN SARI | E22: RARA | F22: Lumajang | G22: 2007-05-18 | H22: SAIFUL | I22: Pertahankan Nilaimu, jangan lengah belajar! | J22: - | K22: =VALUE('REKAP NILAI'!AB16) -> 3 | L22: Lumajang, 18 Mei 2007
A23: 11 | B23: 0071776593 | C23: 4465 | D23: AZZA PRISHAL DWI PUTRA | E23: AZZA | F23: LUMAJANG | G23: 2007-08-14 | H23: MOHAMMAD SHOLEH | I23: Pacu Semangat Belajarmu,& Tingkatkan nilaimu! | J23: - | K23: =VALUE('REKAP NILAI'!AB17) -> 20 | L23: LUMAJANG, 14 Agustus 2007
A24: 12 | B24: 0078989673 | C24: 4366 | D24: BALQIS NAILA AUDIA | E24: BALQIS | F24: LUMAJANG | G24: 2007-10-16 | H24: SAMSUL HUDA | I24: Jangan Lengah, terus semangat belajar | J24: - | K24: =VALUE('REKAP NILAI'!AB18) -> 1 | L24: LUMAJANG, 16 Oktober 2007
A25: 13 | B25: 0078400392 | C25: 4367 | D25: BIMA SATRIA DIRGANTARA | E25: BIMA | F25: LUMAJANG | G25: 2007-10-18 | H25: JOKO SAMBANG | I25: Pacu Semangat Belajarmu,& Tingkatkan nilaimu! | J25: - | K25: =VALUE('REKAP NILAI'!AB19) -> 19 | L25: LUMAJANG, 18 Oktober 2007
A26: 14 | B26: 0086652599 | C26: 4339 | D26: DEVI KARUNIA RATNA PUTRI | E26: DEVI | F26: Lumajang | G26: 2008-01-28 | H26: MUKHAMMAD KHOZIN AS'ARI | I26: Pertahankan Nilaimu, jangan lengah belajar! | J26: - | K26: =VALUE('REKAP NILAI'!AB20) -> 4 | L26: Lumajang, 28 Januari 2008
A27: 15 | B27: 0089906682 | C27: 4340 | D27: DEVITA FEBRIANI PUTRI | E27: VIVI | F27: Lumajang | G27: 2008-02-17 | H27: BINADI | I27: Pertahankan Nilaimu, jangan lengah belajar! | J27: - | K27: =VALUE('REKAP NILAI'!AB21) -> 8 | L27: Lumajang, 17 Februari 2008
A28: 16 | B28: 0074569410 | C28: 4368 | D28: EKA AULIYA` PUTRI | E28: EKA | F28: LUMAJANG | G28: 2007-12-07 | H28: BASHORI ALWI | I28: Pacu Semangat Belajarmu,& Tingkatkan nilaimu! | J28: - | K28: =VALUE('REKAP NILAI'!AB22) -> 16 | L28: LUMAJANG, 07 Desember 2007
A29: 17 | B29: 0083684457 | C29: 4341 | D29: ERSA PUSPITA EKA ROSA LINDA | E29: ERSA | F29: Lumajang | G29: 2008-03-01 | H29: SOLIKIN | I29: Jangan malas belajar, lebih giat dalam belajar! | J29: - | K29: =VALUE('REKAP NILAI'!AB23) -> 23 | L29: Lumajang, 01 Maret 2008
A30: 18 | B30: 0078481731 | C30: 4369 | D30: FABIYAN TRI BAKTI OKTAFIAN | E30: FABIYAN | F30: LUMAJANG | G30: 2007-10-26 | H30: FADLOLI | I30: Jangan malas belajar, lebih giat dalam belajar! | J30: - | K30: =VALUE('REKAP NILAI'!AB24) -> 24 | L30: LUMAJANG, 26 Oktober 2007
A31: 19 | B31: 0074514146 | C31: 4370 | D31: FAKHIS GABRIL LIA | E31: FAKHIS | F31: LUMAJANG | G31: 2007-05-04 | H31: DONI HARIADI | I31: Pertahankan Nilaimu, jangan lengah belajar! | J31: - | K31: =VALUE('REKAP NILAI'!AB25) -> 9 | L31: LUMAJANG, 04 Mei 2007
A32: 20 | C32: 4343 | D32: FELISITA APRILIA NUR NIHAYA | E32: FELI | F32: Lumajang | G32: 2007-04-24 | H32: EDI SISWANTO | I32: Pacu Semangat Belajarmu,& Tingkatkan nilaimu! | J32: - | K32: =VALUE('REKAP NILAI'!AB26) -> 12 | L32: Lumajang, 24 April 2007
A33: 21 | C33: 4344 | D33: FIRDA DWI ANDRIANI | E33: FIRDA | F33: LUMAJANG | G33: 2007-11-23 | H33: MISNATUN | I33: Jangan malas belajar, lebih giat dalam belajar! | J33: - | K33: =VALUE('REKAP NILAI'!AB27) -> 27 | L33: LUMAJANG, 23 November 2007
A34: 22 | B34: 0073420487 | C34: 4345 | D34: GALANG MARDHOTILLAH SATOTO | E34: GALANG | F34: Lumajang | G34: 2007-07-12 | H34: AGUNG SUJUD SATOTO | I34: Pacu Semangat Belajarmu,& Tingkatkan nilaimu! | J34: - | K34: =VALUE('REKAP NILAI'!AB28) -> 15 | L34: Lumajang, 12 Juli 2007
A35: 23 | B35: 0079870082 | C35: 4371 | D35: GALIH FAREL PRASETYO | E35: GALIH | F35: LUMAJANG | G35: 2007-07-03 | H35: MUHAMMAD ARIFIN | I35: Pertahankan Nilaimu, jangan lengah belajar! | J35: - | K35: =VALUE('REKAP NILAI'!AB29) -> 10 | L35: LUMAJANG, 03 Juli 2007
A36: 24 | B36: 0087636520 | C36: 4372 | D36: GILANG AKBAR PRASETYO | E36: AKBAR | F36: LUMAJANG | G36: 2008-01-09 | H36: - | I36: Jangan malas belajar, lebih giat dalam belajar! | J36: - | K36: =VALUE('REKAP NILAI'!AB30) -> 31 | L36: LUMAJANG, 09 Januari 2008
A37: 25 | B37: 0081758949 | C37: 4634 | D37: INES ARIFANI MAULINA | E37: INES | F37: LUMAJANG | G37: 2008-04-04 | H37: MOHAMAD BADRI | I37: Pacu Semangat Belajarmu,& Tingkatkan nilaimu! | J37: - | K37: =VALUE('REKAP NILAI'!AB31) -> 17 | L37: LUMAJANG, 04 April 2008
A38: 26 | B38: 0073608418 | C38: 4346 | D38: IKA KURNIA WATI AGUSTINA | E38: SENA | F38: Lumajang | G38: 2007-08-19 | H38: SUPANDI ARIS SUMARGIONO | I38: Pacu Semangat Belajarmu,& Tingkatkan nilaimu! | J38: - | K38: =VALUE('REKAP NILAI'!AB32) -> 14 | L38: Lumajang, 19 Agustus 2007
A39: 27 | B39: 0073409469 | C39: 4374 | D39: IYAAD AFLAKHA RAMZII | E39: AFLAH | F39: LUMAJANG | G39: 2007-08-10 | H39: ATHO'ILLAH | I39: Jangan malas belajar, lebih giat dalam belajar! | J39: - | K39: =VALUE('REKAP NILAI'!AB33) -> 22 | L39: LUMAJANG, 10 Agustus 2007
A40: 28 | B40: 0068258891 | C40: 4305 | D40: JULI ANDRIYANTO | E40: JULI | F40: LUMAJANG | G40: 2006-07-11 | H40: SIAMAN | I40: Jangan malas belajar, lebih giat dalam belajar! | J40: - | K40: =VALUE('REKAP NILAI'!AB34) -> 25 | L40: LUMAJANG, 11 Juli 2006
A41: 29 | C41: 4530 | D41: M. RIZKY RIDWAN | E41: RIZKY | F41: Lumajang | G41: 2007-11-25 | H41: ACHMAD SYAIKHU | I41: Jangan malas belajar, lebih giat dalam belajar! | J41: - | K41: =VALUE('REKAP NILAI'!AB35) -> 28 | L41: Lumajang, 25 November 2007
A42: 30 | B42: 0076361559 | C42: 4351 | D42: MOCHAMAD RAFLI DIAN SAPUTRA | E42: RAFLI | F42: Lumajang | G42: 2007-07-28 | H42: SAMSUL ARIFIN | I42: Jangan malas belajar, lebih giat dalam belajar! | J42: - | K42: =VALUE('REKAP NILAI'!AB36) -> 29 | L42: Lumajang, 28 Juli 2007
A43: 31 | B43: 0075055640 | C43: 4354 | D43: MUHAMMAD ALVIN RIDHO | E43: ALVIN | F43: Lumajang | G43: 2007-08-13 | H43: MACHMUD ALI RIDHO | I43: Pacu Semangat Belajarmu,& Tingkatkan nilaimu! | J43: - | K43: =VALUE('REKAP NILAI'!AB37) -> 13 | L43: Lumajang, 13 Agustus 2007
A44: 32 | B44: 0073137310 | C44: 4385 | D44: STANY RAFIDAH RAHMANIA | E44: STANI | F44: LUMAJANG | G44: 2007-07-26 | H44: SUNARIYADI | I44: Jangan malas belajar, lebih giat dalam belajar! | J44: - | K44: =VALUE('REKAP NILAI'!AB38) -> 26 | L44: LUMAJANG, 26 Juli 2007
A45: 33 | B45: 0077336427 | C45: 4387 | D45: USWATUN KHASANAH | E45: UUS | F45: LUMAJANG | G45: 2007-07-17 | H45: SATUKAN | I45: Jangan malas belajar, lebih giat dalam belajar! | J45: - | K45: =VALUE('REKAP NILAI'!AB39) -> 32 | L45: LUMAJANG, 17 Juli 2007
A46: 34 | I46: Jangan malas belajar, lebih giat dalam belajar! | J46: - | K46: =VALUE('REKAP NILAI'!AB40) -> 34 | L46: , 00 Januari 1900
A47: 35 | I47: Jangan malas belajar, lebih giat dalam belajar! | J47: - | K47: =VALUE('REKAP NILAI'!AB41) -> 34 | L47: , 00 Januari 1900
A48: 36 | I48: Jangan malas belajar, lebih giat dalam belajar! | J48: - | K48: =VALUE('REKAP NILAI'!AB42) -> 34 | L48: , 00 Januari 1900
A49: 37 | I49: Jangan malas belajar, lebih giat dalam belajar! | J49: - | K49: =VALUE('REKAP NILAI'!AB43) -> 34 | L49: , 00 Januari 1900
A50: 38 | I50: Jangan malas belajar, lebih giat dalam belajar! | J50: - | K50: =VALUE('REKAP NILAI'!AB44) -> 34 | L50: , 00 Januari 1900
A51: 39 | I51: Jangan malas belajar, lebih giat dalam belajar! | J51: - | K51: =VALUE('REKAP NILAI'!AB45) -> 34 | L51: , 00 Januari 1900
A52: 40 | I52: Jangan malas belajar, lebih giat dalam belajar! | J52: - | K52: =VALUE('REKAP NILAI'!AB46) -> 34 | L52: , 00 Januari 1900
A53: 41 | I53: Jangan malas belajar, lebih giat dalam belajar! | J53: - | K53: =VALUE('REKAP NILAI'!AB47) -> 34 | L53: , 00 Januari 1900
A54: 42 | I54: Jangan malas belajar, lebih giat dalam belajar! | J54: - | K54: =VALUE('REKAP NILAI'!AB48) -> 34 | L54: , 00 Januari 1900
A55: 43 | I55: Jangan malas belajar, lebih giat dalam belajar! | J55: - | K55: =VALUE('REKAP NILAI'!AB49) -> 34 | L55: , 00 Januari 1900
A56: 44 | I56: Jangan malas belajar, lebih giat dalam belajar! | J56: - | K56: =VALUE('REKAP NILAI'!AB50) -> 34 | L56: , 00 Januari 1900
A57: 45 | I57: Jangan malas belajar, lebih giat dalam belajar! | J57: - | K57: =VALUE('REKAP NILAI'!AB51) -> 34 | L57: , 00 Januari 1900
A58: 46 | I58: Jangan malas belajar, lebih giat dalam belajar! | J58: - | K58: =VALUE('REKAP NILAI'!AB52) -> 34 | L58: , 00 Januari 1900
A59: 47 | I59: Jangan malas belajar, lebih giat dalam belajar! | J59: - | K59: =VALUE('REKAP NILAI'!AB53) -> 34 | L59: , 00 Januari 1900
A60: 48 | I60: Jangan malas belajar, lebih giat dalam belajar! | J60: - | K60: =VALUE('REKAP NILAI'!AB54) -> 34 | L60: , 00 Januari 1900
A61: 49 | I61: Jangan malas belajar, lebih giat dalam belajar! | J61: - | K61: =VALUE('REKAP NILAI'!AB55) -> 34 | L61: , 00 Januari 1900
A62: 50 | I62: Jangan malas belajar, lebih giat dalam belajar! | J62: - | K62: =VALUE('REKAP NILAI'!AB56) -> 34 | L62: , 00 Januari 1900
A63: 51 | I63: Jangan malas belajar, lebih giat dalam belajar! | J63: - | K63: =VALUE('REKAP NILAI'!AB57) -> 34 | L63: , 00 Januari 1900
A64: 52 | I64: Jangan Lengah, terus semangat belajar | J64: -
A65: 53 | I65: Jangan Lengah, terus semangat belajar | J65: -
A66: 54 | I66: Jangan Lengah, terus semangat belajar | J66: -
A67: 55 | I67: Jangan Lengah, terus semangat belajar | J67: -
A68: 56 | I68: Jangan Lengah, terus semangat belajar | J68: -
A69: 57 | I69: Jangan Lengah, terus semangat belajar | J69: -
A70: 58 | I70: Jangan Lengah, terus semangat belajar | J70: -
A71: 59 | I71: Jangan Lengah, terus semangat belajar | J71: -
A72: 60 | I72: Jangan Lengah, terus semangat belajar | J72: -

Sheet KKM
A2: Pendidikan Agama
A3: a | B3: Alquran Hadits | C3: = | D3: 70
A4: b | B4: Aqidah Akhlak | C4: = | D4: 70
A5: c | B5: Fiqih | C5: = | D5: 70
A6: d | B6: Sejarah Kebudayaan Islam | C6: = | D6: 70
A7: PPKn | C7: = | D7: 70
A8: B.Indonesia | C8: = | D8: 70
A9: B. Arab | C9: = | D9: 70
A10: Matematika | C10: = | D10: 70
A11: IPA | C11: = | D11: 70
A12: IPS | C12: = | D12: 70
A13: Seni Budaya dan Prakarya | C13: = | D13: 75
A14: Pend. Jasmani OR & Kesehatan | C14: = | D14: 75
A15: Muatan Lokal :
A16: a | B16: B. Daerah | C16: = | D16: 70
A17: b | B17: B. Inggris | C17: = | D17: 65
A18: c | B18: Aswaja | C18: = | D18: 70
A19: d | B19: Nahwu-Shorof | C19: = | D19: 70
A21: Ektrakurikuler
A22: a. | B22: TIK | C22: =
A23: b. | B23: Ulangan | C23: =
A24: c. | C24: =
A25: d. | C25: =

Sheet REKAP NILAI
A1: ='DATA SISWA'!L6 -> UJIAN TENGAH SEMESTER II (GENAP)
A2: ='DATA SISWA'!L7 -> TAHUN PELAJARAN 2017/2018
A3: NAMA MADRASAH | C3: : | D3: ='DATA SISWA'!E2 -> MI NURUL ISLAM LABRUK KIDUL | P3: ='DATA SISWA'!L4 -> KELAS IV (EMPAT) A | AD3: TEMPAT LAHIR | AE3: TANGGAL LAHIR | AF3: ORANG TUA | AG3: NO. INDUK
A4: 1 | B4: 2 | C4: 3 | D4: 4 | E4: 5 | F4: 6 | G4: 7 | H4: 8 | I4: 9 | J4: 10 | K4: 11 | L4: 12 | M4: 13 | N4: 14 | O4: 15 | P4: 16 | Q4: 17 | R4: 18 | S4: 19 | T4: 20 | U4: 21 | V4: 22 | W4: 23 | X4: 24 | AB4: 25
A5: No. Absen | B5: Nama Siswa | C5: =KKM!B3 -> Alquran Hadits | D5: =KKM!B4 -> Aqidah Akhlak | E5: =KKM!B5 -> Fiqih | F5: =KKM!B6 -> Sejarah Kebudayaan Islam | G5: =KKM!A7 -> PPKn | H5: =KKM!A8 -> B.Indonesia | I5: =KKM!A9 -> B. Arab | J5: =KKM!A10 -> Matematika | K5: =KKM!A11 -> IPA | L5: =KKM!A12 -> IPS | M5: =KKM!A13 -> Seni Budaya dan Prakarya | N5: =KKM!A14 -> Pend. Jasmani OR & Kesehatan | O5: =KKM!B16 -> B. Daerah | P5: =KKM!B17 -> B. Inggris | Q5: =KKM!B18 -> Aswaja | R5: =KKM!B19 -> Nahwu-Shorof | S5: =KKM!B22 -> TIK | T5: =KKM!B23 -> Ulangan | U5: =KKM!B24 -> 0 | V5: =KKM!B25 -> 0 | W5: JUMLAH | X5: Rata-rata | Y5: ABSENSI | AB5: Peringkat
C6: UTS | D6: UTS | E6: UTS | F6: UTS | G6: UTS | H6: UTS | I6: UTS | J6: UTS | K6: UTS | L6: UTS | M6: UTS | N6: UTS | O6: UTS | P6: UTS | Q6: UTS | R6: UTS | S6: UTS | T6: UTS | U6: UTS | V6: UTS | W6: UTS | X6: UTS | Y6: S | Z6: I | AA6: A
A7: 1 | B7: =IF('DATA SISWA'!D13=0,"",'DATA SISWA'!D13) -> ACHMAD FATHIR IZUDDIN | C7: 85 | D7: 47 | E7: 80 | F7: 45 | G7: 70 | H7: 75 | I7: 40 | J7: 80 | K7: 70 | L7: 70 | M7: 70 | N7: 80 | O7: 40 | P7: 70 | Q7: 63 | R7: 60 | W7: =SUM(C7:T7) -> 1045 | X7: =IF(ISERROR(AVERAGE(C7:T7)),"",AVERAGE(C7:T7)) -> 65.3125 | Y7: 1 | AB7: =RANK(W7,$W$7:$W$66) -> 21 | AD7: ='[1]DATA SISWA'!D10 -> Lumajang | AE7: ='[1]DATA SISWA'!E10 -> 2004-07-14 | AF7: ='[1]DATA SISWA'!F10 -> Achmad Kamali Alfan | AG7: ='[1]DATA SISWA'!B10 -> 4121
A8: 2 | B8: =IF('DATA SISWA'!D14=0,"",'DATA SISWA'!D14) -> ACHMAD SEPTIAN HAMDANI | C8: 60 | D8: 44 | E8: 85 | F8: 43 | G8: 70 | H8: 60 | I8: 40 | J8: 60 | K8: 60 | L8: 60 | M8: 72.5 | N8: 80 | O8: 30 | P8: 60 | Q8: 71 | R8: 70 | W8: =SUM(C8:T8) -> 965.5 | X8: =IF(ISERROR(AVERAGE(C8:T8)),"",AVERAGE(C8:T8)) -> 60.34375 | Y8: 2 | AB8: =RANK(W8,$W$7:$W$66) -> 30 | AD8: ='[1]DATA SISWA'!D11 -> Lumajang | AE8: ='[1]DATA SISWA'!E11 -> 2003-07-16 | AF8: ='[1]DATA SISWA'!F11 -> Imam Nawawi | AG8: ='[1]DATA SISWA'!B11 -> 4090
A9: 3 | B9: =IF('DATA SISWA'!D15=0,"",'DATA SISWA'!D15) -> ACHMAD SULAIMAN | C9: 60 | D9: 25 | E9: 70 | F9: 32 | G9: 70 | H9: 60 | I9: 40 | J9: 55 | K9: 60 | L9: 60 | M9: 80 | N9: 80 | O9: 30 | P9: 70 | Q9: 63 | R9: 60 | W9: =SUM(C9:T9) -> 915 | X9: =IF(ISERROR(AVERAGE(C9:T9)),"",AVERAGE(C9:T9)) -> 57.1875 | Y9: 5 | AB9: =RANK(W9,$W$7:$W$66) -> 33 | AD9: ='[1]DATA SISWA'!D12 -> Lumajang | AE9: ='[1]DATA SISWA'!E12 -> 2002-07-21 | AF9: ='[1]DATA SISWA'!F12 -> Moch. Basuni | AG9: ='[1]DATA SISWA'!B12 -> 4124
A10: 4 | B10: =IF('DATA SISWA'!D16=0,"",'DATA SISWA'!D16) -> AININ NAFISA FEBRIYANTI | C10: 85 | D10: 65 | E10: 85 | F10: 54 | G10: 70 | H10: 80 | I10: 45 | J10: 86.66666667 | K10: 75 | L10: 78 | M10: 80 | N10: 80 | O10: 60 | P10: 70 | Q10: 75 | R10: 70 | W10: =SUM(C10:T10) -> 1158.666667 | X10: =IF(ISERROR(AVERAGE(C10:T10)),"",AVERAGE(C10:T10)) -> 72.41666667 | AB10: =RANK(W10,$W$7:$W$66) -> 6 | AD10: ='[1]DATA SISWA'!D13 -> Lumajang | AE10: ='[1]DATA SISWA'!E13 -> 2003-04-04 | AF10: ='[1]DATA SISWA'!F13 -> Zainul Atim Slamet | AG10: ='[1]DATA SISWA'!B13 -> 4091
A11: 5 | B11: =IF('DATA SISWA'!D17=0,"",'DATA SISWA'!D17) -> AISYAH DWI ANDINI | C11: 85 | D11: 95 | E11: 85 | F11: 76 | G11: 70 | H11: 80 | I11: 44 | J11: 83.33333333 | K11: 70 | L11: 70 | M11: 76.66666667 | N11: 80 | O11: 50 | P11: 70 | Q11: 73 | R11: 70 | W11: 1178 | X11: 73.625 | Y11: 1 | Z11: 1 | AA11: 1 | AB11: =RANK(W11,$W$7:$W$66) -> 2 | AD11: ='[1]DATA SISWA'!D14 -> Lumajang | AE11: ='[1]DATA SISWA'!E14 -> 2003-07-06 | AF11: ='[1]DATA SISWA'!F14 -> Slamet Riyadi | AG11: ='[1]DATA SISWA'!B14 -> 4092
A12: 6 | B12: =IF('DATA SISWA'!D18=0,"",'DATA SISWA'!D18) -> AJENG AGUSTINA KIRANA PUTRI | C12: 85 | D12: 64 | E12: 85 | F12: 37 | G12: 70 | H12: 80 | I12: 48 | J12: 83.33333333 | K12: 75 | L12: 78 | M12: 76.66666667 | N12: 80 | O12: 70 | P12: 70 | Q12: 83 | R12: 70 | W12: 1155 | X12: 72.1875 | Y12: 2 | AB12: 7 | AD12: ='[1]DATA SISWA'!D15 -> Lumajang | AE12: ='[1]DATA SISWA'!E15 -> 2003-08-12 | AF12: ='[1]DATA SISWA'!F15 -> Mochamad Amin | AG12: ='[1]DATA SISWA'!B15 -> 4093
A13: 7 | B13: =IF('DATA SISWA'!D19=0,"",'DATA SISWA'!D19) -> ALVIAN FAIZULHAQQI | C13: 85 | D13: 65 | E13: 85 | F13: 23 | G13: 70 | H13: 75 | I13: 45 | J13: 82 | K13: 70 | L13: 70 | M13: 80 | N13: 80 | O13: 65 | P13: 60 | Q13: 77 | R13: 60 | W13: 1092 | X13: 68.25 | Y13: 3 | AA13: 2 | AB13: 11 | AD13: ='[1]DATA SISWA'!D16 -> Lumajang | AE13: ='[1]DATA SISWA'!E16 -> 2003-11-13 | AF13: ='[1]DATA SISWA'!F16 -> Mukhamad Fauzi | AG13: ='[1]DATA SISWA'!B16 -> 4136
A14: 8 | B14: =IF('DATA SISWA'!D20=0,"",'DATA SISWA'!D20) -> ANGGITA RIZKY YUGA MEISYA | C14: 80 | D14: 67 | E14: 85 | F14: 45 | G14: 70 | H14: 75 | I14: 59 | J14: 80 | K14: 75 | L14: 78 | M14: 70 | N14: 80 | O14: 65 | P14: 70 | Q14: 90 | R14: 70 | W14: 1159 | X14: 72.4375 | Y14: 1 | AB14: 5 | AD14: ='[1]DATA SISWA'!D17 -> Sidoarjo, | AE14: ='[1]DATA SISWA'!E17 -> 2003-10-29 | AF14: ='[1]DATA SISWA'!F17 -> 0 | AG14: ='[1]DATA SISWA'!B17 -> 4094
A15: 9 | B15: =IF('DATA SISWA'!D21=0,"",'DATA SISWA'!D21) -> AUFAN AZKAL ABRORI | C15: 80 | D15: 44 | E15: 85 | F15: 43 | G15: 70 | H15: 70 | I15: 50 | J15: 81.66666667 | K15: 70 | L15: 70 | M15: 77.33333333 | N15: 80 | O15: 50 | P15: 70 | Q15: 63 | R15: 60 | W15: 1064 | X15: 66.5 | AB15: 18 | AD15: ='[1]DATA SISWA'!D18 -> Lumajang | AE15: ='[1]DATA SISWA'!E18 -> 2003-09-11 | AF15: ='[1]DATA SISWA'!F18 -> Samsuhar | AG15: ='[1]DATA SISWA'!B18 -> 4095
A16: 10 | B16: =IF('DATA SISWA'!D22=0,"",'DATA SISWA'!D22) -> AURA SALSABILA WULAN SARI | C16: 85 | D16: 79 | E16: 85 | F16: 50 | G16: 70 | H16: 70 | I16: 55 | J16: 80 | K16: 75 | L16: 78 | M16: 84.5 | N16: 83 | O16: 55 | P16: 70 | Q16: 88 | R16: 70 | W16: 1177.5 | X16: 73.59375 | Y16: 3 | AA16: 1 | AB16: 3 | AD16: ='[1]DATA SISWA'!D19 -> Lumajang | AE16: ='[1]DATA SISWA'!E19 -> 2003-06-15 | AF16: ='[1]DATA SISWA'!F19 -> Wahyudi | AG16: ='[1]DATA SISWA'!B19 -> 4135
A17: 11 | B17: =IF('DATA SISWA'!D23=0,"",'DATA SISWA'!D23) -> AZZA PRISHAL DWI PUTRA | C17: 75 | D17: 35 | E17: 75 | F17: 47 | G17: 70 | H17: 70 | I17: 56 | J17: 72.5 | K17: 70 | L17: 70 | M17: 75 | N17: 80 | O17: 70 | P17: 60 | Q17: 63 | R17: 60 | W17: 1048.5 | X17: 65.53125 | AB17: 20 | AD17: ='[1]DATA SISWA'!D20 -> Lumajang | AE17: ='[1]DATA SISWA'!E20 -> 2003-10-23 | AF17: ='[1]DATA SISWA'!F20 -> Sukadi | AG17: ='[1]DATA SISWA'!B20 -> 4096
A18: 12 | B18: =IF('DATA SISWA'!D24=0,"",'DATA SISWA'!D24) -> BALQIS NAILA AUDIA | C18: 85 | D18: 86 | E18: 85 | F18: 76 | G18: 70 | H18: 80 | I18: 77 | J18: 90 | K18: 75 | L18: 78 | M18: 70 | N18: 82 | O18: 60 | P18: 70 | Q18: 88 | R18: 70 | W18: 1242 | X18: 77.625 | AB18: 1 | AD18: ='[1]DATA SISWA'!D21 -> Lumajang | AE18: ='[1]DATA SISWA'!E21 -> 2003-11-04 | AF18: ='[1]DATA SISWA'!F21 -> Zainul Muttaqin | AG18: ='[1]DATA SISWA'!B21 -> 4097
A19: 13 | B19: =IF('DATA SISWA'!D25=0,"",'DATA SISWA'!D25) -> BIMA SATRIA DIRGANTARA | C19: 80 | D19: 54 | E19: 85 | F19: 37 | G19: 70 | H19: 70 | I19: 48 | J19: 81.66666667 | K19: 70 | L19: 70 | M19: 74.33333333 | N19: 83 | O19: 30 | P19: 70 | Q19: 73 | R19: 60 | W19: 1056 | X19: 66 | Y19: 3 | AA19: 1 | AB19: 19 | AD19: ='[1]DATA SISWA'!D22 -> Kampar | AE19: ='[1]DATA SISWA'!E22 -> 2002-11-09 | AF19: ='[1]DATA SISWA'!F22 -> Kastin | AG19: ='[1]DATA SISWA'!B22 -> 4061
A20: 14 | B20: =IF('DATA SISWA'!D26=0,"",'DATA SISWA'!D26) -> DEVI KARUNIA RATNA PUTRI | C20: 85 | D20: 80 | E20: 85 | F20: 44 | G20: 70 | H20: 80 | I20: 49 | J20: 80 | K20: 75 | L20: 78 | M20: 75 | N20: 80 | O20: 65 | P20: 70 | Q20: 83 | R20: 65 | W20: 1164 | X20: 72.75 | Y20: 1 | AB20: 4 | AD20: ='[1]DATA SISWA'!D23 -> Lumajang | AE20: ='[1]DATA SISWA'!E23 -> 2003-05-18 | AF20: ='[1]DATA SISWA'!F23 -> Kholiqul Sulton | AG20: ='[1]DATA SISWA'!B23 -> 4099
A21: 15 | B21: =IF('DATA SISWA'!D27=0,"",'DATA SISWA'!D27) -> DEVITA FEBRIANI PUTRI | C21: 80 | D21: 74 | E21: 85 | F21: 48 | G21: 70 | H21: 80 | I21: 50 | J21: 86.66666667 | K21: 75 | L21: 78 | M21: 75 | N21: 80 | O21: 30 | P21: 70 | Q21: 85 | R21: 65 | W21: 1131.666667 | X21: 70.72916667 | AB21: 8 | AD21: ='[1]DATA SISWA'!D24 -> Lumajang | AE21: ='[1]DATA SISWA'!E24 -> 2003-11-20 | AF21: ='[1]DATA SISWA'!F24 -> Ngateno | AG21: ='[1]DATA SISWA'!B24 -> 4101
A22: 16 | B22: =IF('DATA SISWA'!D28=0,"",'DATA SISWA'!D28) -> EKA AULIYA` PUTRI | C22: 85 | D22: 67 | E22: 75 | F22: 51 | G22: 70 | H22: 60 | I22: 50 | J22: 65 | K22: 70 | L22: 70 | M22: 73.5 | N22: 80 | O22: 35 | P22: 70 | Q22: 77 | R22: 70 | W22: 1068.5 | X22: 66.78125 | AB22: 16 | AD22: ='[1]DATA SISWA'!D25 -> Lumajang | AE22: ='[1]DATA SISWA'!E25 -> 2003-12-02 | AF22: ='[1]DATA SISWA'!F25 -> Rahmad Hidayat (Tr) | AG22: ='[1]DATA SISWA'!B25 -> 4142
A23: 17 | B23: =IF('DATA SISWA'!D29=0,"",'DATA SISWA'!D29) -> ERSA PUSPITA EKA ROSA LINDA | C23: 85 | D23: 68 | E23: 77.5 | F23: 25 | G23: 70 | H23: 70 | I23: 42 | J23: 80 | K23: 70 | L23: 70 | M23: 70 | N23: 80 | O23: 35 | P23: 60 | Q23: 65 | R23: 60 | W23: 1027.5 | X23: 64.21875 | AB23: 23 | AD23: ='[1]DATA SISWA'!D26 -> Lumajang | AE23: ='[1]DATA SISWA'!E26 -> 2003-05-09 | AF23: ='[1]DATA SISWA'!F26 -> Nadim | AG23: ='[1]DATA SISWA'!B26 -> 4102
A24: 18 | B24: =IF('DATA SISWA'!D30=0,"",'DATA SISWA'!D30) -> FABIYAN TRI BAKTI OKTAFIAN | C24: 85 | D24: 45 | E24: 77.5 | F24: 49 | G24: 70 | H24: 70 | I24: 40 | J24: 62.5 | K24: 70 | L24: 70 | M24: 76 | N24: 81 | O24: 20 | P24: 70 | Q24: 63 | R24: 70 | W24: 1019 | X24: 63.6875 | AB24: 24 | AD24: ='[1]DATA SISWA'!D27 -> Lumajang | AE24: ='[1]DATA SISWA'!E27 -> 2003-04-28 | AF24: ='[1]DATA SISWA'!F27 -> Abdul Ghofur | AG24: ='[1]DATA SISWA'!B27 -> 4103
A25: 19 | B25: =IF('DATA SISWA'!D31=0,"",'DATA SISWA'!D31) -> FAKHIS GABRIL LIA | C25: 85 | D25: 74 | E25: 85 | F25: 47 | G25: 70 | H25: 70 | I25: 50 | J25: 90 | K25: 70 | L25: 70 | M25: 70 | N25: 80 | O25: 30 | P25: 70 | Q25: 79 | R25: 70 | W25: 1110 | X25: 69.375 | AB25: 9 | AD25: ='[1]DATA SISWA'!D28 -> Lumajang | AE25: ='[1]DATA SISWA'!E28 -> 2004-03-20 | AF25: ='[1]DATA SISWA'!F28 -> Sugiarto | AG25: ='[1]DATA SISWA'!B28 -> 4125
A26: 20 | B26: =IF('DATA SISWA'!D32=0,"",'DATA SISWA'!D32) -> FELISITA APRILIA NUR NIHAYA | C26: 85 | D26: 66 | E26: 85 | F26: 37 | G26: 70 | H26: 70 | I26: 44 | J26: 83.33333333 | K26: 70 | L26: 70 | M26: 70 | N26: 80 | O26: 45 | P26: 70 | Q26: 73 | R26: 70 | W26: 1088.333333 | X26: 68.02083333 | AB26: 12 | AD26: ='[1]DATA SISWA'!D29 -> Lumajang | AE26: ='[1]DATA SISWA'!E29 -> 2004-02-22 | AF26: ='[1]DATA SISWA'!F29 -> Zainul Arifin | AG26: ='[1]DATA SISWA'!B29 -> 4105
A27: 21 | B27: =IF('DATA SISWA'!D33=0,"",'DATA SISWA'!D33) -> FIRDA DWI ANDRIANI | C27: 85 | D27: 47 | E27: 85 | F27: 30 | G27: 70 | H27: 70 | I27: 36 | J27: 60 | K27: 70 | L27: 70 | M27: 70 | N27: 80 | O27: 35 | P27: 70 | Q27: 63 | R27: 60 | W27: 1001 | X27: 62.5625 | AB27: 27 | AD27: ='[1]DATA SISWA'!D30 -> Lumajang | AE27: ='[1]DATA SISWA'!E30 -> 2003-08-06 | AF27: ='[1]DATA SISWA'!F30 -> Amirudin | AG27: ='[1]DATA SISWA'!B30 -> 4108
A28: 22 | B28: =IF('DATA SISWA'!D34=0,"",'DATA SISWA'!D34) -> GALANG MARDHOTILLAH SATOTO | C28: 80 | D28: 52 | E28: 80 | F28: 41 | G28: 70 | H28: 70 | I28: 51 | J28: 80 | K28: 70 | L28: 70 | M28: 85 | N28: 80 | O28: 45 | P28: 70 | Q28: 67 | R28: 60 | W28: 1071 | X28: 66.9375 | AB28: 15 | AD28: ='[1]DATA SISWA'!D31 -> Lumajang | AE28: ='[1]DATA SISWA'!E31 -> 2002-08-24 | AF28: ='[1]DATA SISWA'!F31 -> Sumarno | AG28: ='[1]DATA SISWA'!B31 -> 4140
A29: 23 | B29: =IF('DATA SISWA'!D35=0,"",'DATA SISWA'!D35) -> GALIH FAREL PRASETYO | C29: 85 | D29: 51 | E29: 85 | F29: 45 | G29: 70 | H29: 75 | I29: 50 | J29: 80 | K29: 70 | L29: 70 | M29: 90 | N29: 81 | O29: 40 | P29: 70 | Q29: 73 | R29: 70 | W29: 1105 | X29: 69.0625 | Y29: 2 | AA29: 1 | AB29: 10 | AD29: ='[1]DATA SISWA'!D32 -> Lumajang | AE29: ='[1]DATA SISWA'!E32 -> 2002-12-02 | AF29: ='[1]DATA SISWA'!F32 -> Mahmud | AG29: ='[1]DATA SISWA'!B32 -> 4130
A30: 24 | B30: =IF('DATA SISWA'!D36=0,"",'DATA SISWA'!D36) -> GILANG AKBAR PRASETYO | C30: 70 | D30: 39 | E30: 75 | F30: 22 | G30: 70 | H30: 70 | I30: 35 | J30: 70 | K30: 70 | L30: 70 | M30: 70 | N30: 80 | O30: 25 | P30: 70 | Q30: 63 | R30: 60 | W30: 959 | X30: 59.9375 | AB30: 31 | AD30: ='[1]DATA SISWA'!D33 -> Lumajang | AE30: ='[1]DATA SISWA'!E33 -> 2003-04-29 | AF30: ='[1]DATA SISWA'!F33 -> Miftahul Hadi | AG30: ='[1]DATA SISWA'!B33 -> 4112
A31: 25 | B31: =IF('DATA SISWA'!D37=0,"",'DATA SISWA'!D37) -> INES ARIFANI MAULINA | C31: 85 | D31: 48 | E31: 75 | F31: 31 | G31: 70 | H31: 70 | I31: 41 | J31: 85 | K31: 70 | L31: 75 | M31: 75 | N31: 80 | O31: 50 | P31: 70 | Q31: 70 | R31: 70 | W31: 1065 | X31: 66.5625 | AB31: 17 | AD31: ='[1]DATA SISWA'!D34 -> Lumajang | AE31: ='[1]DATA SISWA'!E34 -> 2003-11-16 | AF31: ='[1]DATA SISWA'!F34 -> Mohamad Yusuf | AG31: ='[1]DATA SISWA'!B34 -> 4113
A32: 26 | B32: =IF('DATA SISWA'!D38=0,"",'DATA SISWA'!D38) -> IKA KURNIA WATI AGUSTINA | C32: 85 | D32: 59 | E32: 82.5 | F32: 51 | G32: 70 | H32: 75 | I32: 48 | J32: 76.66666667 | K32: 70 | L32: 73 | M32: 73 | N32: 80 | O32: 45 | P32: 70 | Q32: 64 | R32: 60 | W32: 1082.166667 | X32: 67.63541667 | Z32: 2 | AA32: 1 | AB32: 14 | AD32: ='[1]DATA SISWA'!D35 -> Lumajang | AE32: ='[1]DATA SISWA'!E35 -> 2004-06-07 | AF32: ='[1]DATA SISWA'!F35 -> Timbul | AG32: ='[1]DATA SISWA'!B35 -> 4114
A33: 27 | B33: =IF('DATA SISWA'!D39=0,"",'DATA SISWA'!D39) -> IYAAD AFLAKHA RAMZII | C33: 85 | D33: 45 | E33: 80 | F33: 39 | G33: 70 | H33: 70 | I33: 44 | J33: 60 | K33: 70 | L33: 70 | M33: 70 | N33: 80 | O33: 40 | P33: 70 | Q33: 71 | R33: 70 | W33: 1034 | X33: 64.625 | Y33: 4 | AA33: 1 | AB33: 22 | AD33: ='[1]DATA SISWA'!D36 -> Lumajang | AE33: ='[1]DATA SISWA'!E36 -> 2003-10-08 | AF33: ='[1]DATA SISWA'!F36 -> Masduki | AG33: ='[1]DATA SISWA'!B36 -> 4115
A34: 28 | B34: =IF('DATA SISWA'!D40=0,"",'DATA SISWA'!D40) -> JULI ANDRIYANTO | C34: 85 | D34: 45 | E34: 75 | F34: 41 | G34: 70 | H34: 75 | I34: 40 | J34: 70 | K34: 70 | L34: 70 | M34: 70 | N34: 85 | O34: 35 | P34: 60 | Q34: 63 | R34: 60 | W34: 1014 | X34: 63.375 | AA34: 1 | AB34: 25 | AD34: ='[1]DATA SISWA'!D37 -> Lumajang | AE34: ='[1]DATA SISWA'!E37 -> 2004-01-21 | AF34: ='[1]DATA SISWA'!F37 -> M. Khamdani Syaifullah | AG34: ='[1]DATA SISWA'!B37 -> 4116
A35: 29 | B35: =IF('DATA SISWA'!D41=0,"",'DATA SISWA'!D41) -> M. RIZKY RIDWAN | C35: 85 | D35: 44 | E35: 75 | F35: 36 | G35: 70 | H35: 70 | I35: 40 | J35: 60 | K35: 65 | L35: 65 | M35: 70 | N35: 80 | O35: 40 | P35: 60 | Q35: 63 | R35: 70 | W35: 993 | X35: 62.0625 | Y35: 2 | AB35: 28 | AD35: ='[1]DATA SISWA'!D38 -> Lumajang | AE35: ='[1]DATA SISWA'!E38 -> 2003-09-24 | AF35: ='[1]DATA SISWA'!F38 -> Suyanto | AG35: ='[1]DATA SISWA'!B38 -> 4117
A36: 30 | B36: =IF('DATA SISWA'!D42=0,"",'DATA SISWA'!D42) -> MOCHAMAD RAFLI DIAN SAPUTRA | C36: 75 | D36: 47 | E36: 75 | F36: 30 | G36: 70 | H36: 70 | I36: 36 | J36: 67.5 | K36: 70 | L36: 70 | M36: 70 | N36: 80 | O36: 20 | P36: 60 | Q36: 72 | R36: 60 | W36: 972.5 | X36: 60.78125 | Y36: 2 | Z36: 1 | AA36: 1 | AB36: 29
A37: 31 | B37: =IF('DATA SISWA'!D43=0,"",'DATA SISWA'!D43) -> MUHAMMAD ALVIN RIDHO | C37: 85 | D37: 82 | E37: 80 | F37: 43 | G37: 70 | H37: 70 | I37: 40 | J37: 83.33333333 | K37: 70 | L37: 70 | M37: 77.5 | N37: 80 | O37: 40 | P37: 60 | Q37: 73 | R37: 60 | W37: 1083.833333 | X37: 67.73958333 | AA37: 2 | AB37: 13
A38: 32 | B38: =IF('DATA SISWA'!D44=0,"",'DATA SISWA'!D44) -> STANY RAFIDAH RAHMANIA | C38: 80 | D38: 44 | E38: 80 | F38: 40 | G38: 70 | H38: 70 | I38: 44 | J38: 60 | K38: 70 | L38: 70 | M38: 75 | N38: 80 | O38: 30 | P38: 70 | Q38: 63 | R38: 60 | W38: 1006 | X38: 62.875 | AA38: 4 | AB38: 26
A39: 33 | B39: =IF('DATA SISWA'!D45=0,"",'DATA SISWA'!D45) -> USWATUN KHASANAH | C39: 60 | D39: 44 | E39: 75 | F39: 33 | G39: 70 | H39: 70 | I39: 38 | J39: 55 | K39: 65 | L39: 65 | M39: 70 | N39: 80 | O39: 40 | P39: 70 | Q39: 63 | R39: 60 | W39: 958 | X39: 59.875 | Y39: 1 | AA39: 1 | AB39: 32
A40: 34 | B40: =IF('DATA SISWA'!D46=0,"",'DATA SISWA'!D46) ->  | W40: 0 | AB40: 34
A41: 35 | B41: =IF('DATA SISWA'!D47=0,"",'DATA SISWA'!D47) ->  | W41: 0 | AB41: 34 | AD41: ='[1]DATA SISWA'!D39 -> 0 | AE41: ='[1]DATA SISWA'!E39 -> 00:00:00 | AF41: ='[1]DATA SISWA'!F39 -> 0 | AG41: ='[1]DATA SISWA'!B39 -> 0
A42: 36 | B42: =IF('DATA SISWA'!D48=0,"",'DATA SISWA'!D48) ->  | W42: 0 | AB42: 34
A43: 37 | B43: =IF('DATA SISWA'!D49=0,"",'DATA SISWA'!D49) ->  | W43: 0 | AB43: 34
A44: 38 | B44: =IF('DATA SISWA'!D50=0,"",'DATA SISWA'!D50) ->  | W44: 0 | AB44: 34
A45: 39 | B45: =IF('DATA SISWA'!D51=0,"",'DATA SISWA'!D51) ->  | W45: 0 | AB45: 34
A46: 40 | B46: =IF('DATA SISWA'!D52=0,"",'DATA SISWA'!D52) ->  | W46: 0 | AB46: 34
A47: 41 | B47: =IF('DATA SISWA'!D53=0,"",'DATA SISWA'!D53) ->  | W47: 0 | AB47: 34
A48: 42 | B48: =IF('DATA SISWA'!D54=0,"",'DATA SISWA'!D54) ->  | W48: 0 | AB48: 34
A49: 43 | B49: =IF('DATA SISWA'!D55=0,"",'DATA SISWA'!D55) ->  | W49: =SUM(C49:T49) -> 0 | X49: =IF(ISERROR(AVERAGE(C49:T49)),"",AVERAGE(C49:T49)) ->  | AB49: 34
A50: 44 | B50: =IF('DATA SISWA'!D56=0,"",'DATA SISWA'!D56) ->  | W50: =SUM(C50:T50) -> 0 | X50: =IF(ISERROR(AVERAGE(C50:T50)),"",AVERAGE(C50:T50)) ->  | AB50: 34
A51: 45 | B51: =IF('DATA SISWA'!D57=0,"",'DATA SISWA'!D57) ->  | W51: =SUM(C51:T51) -> 0 | X51: =IF(ISERROR(AVERAGE(C51:T51)),"",AVERAGE(C51:T51)) ->  | AB51: 34
A52: 46 | B52: =IF('DATA SISWA'!D58=0,"",'DATA SISWA'!D58) ->  | W52: 0 | AB52: 34
A53: 47 | B53: =IF('DATA SISWA'!D59=0,"",'DATA SISWA'!D59) ->  | W53: 0 | AB53: 34
A54: 48 | B54: =IF('DATA SISWA'!D60=0,"",'DATA SISWA'!D60) ->  | W54: 0 | AB54: 34
A55: 49 | B55: =IF('DATA SISWA'!D61=0,"",'DATA SISWA'!D61) ->  | W55: 0 | AB55: 34
A56: 50 | B56: =IF('DATA SISWA'!D62=0,"",'DATA SISWA'!D62) ->  | W56: 0 | AB56: 34
A57: 51 | B57: =IF('DATA SISWA'!D63=0,"",'DATA SISWA'!D63) ->  | W57: =SUM(C57:T57) -> 0 | X57: =IF(ISERROR(AVERAGE(C57:T57)),"",AVERAGE(C57:T57)) ->  | AB57: 34
A58: 52 | B58: =IF('DATA SISWA'!D64=0,"",'DATA SISWA'!D64) ->  | W58: =SUM(C58:T58) -> 0 | X58: =IF(ISERROR(AVERAGE(C58:T58)),"",AVERAGE(C58:T58)) ->  | AB58: 34
A59: 53 | B59: =IF('DATA SISWA'!D65=0,"",'DATA SISWA'!D65) ->  | W59: =SUM(C59:T59) -> 0 | X59: =IF(ISERROR(AVERAGE(C59:T59)),"",AVERAGE(C59:T59)) ->  | AB59: 34
A60: 54 | B60: =IF('DATA SISWA'!D66=0,"",'DATA SISWA'!D66) ->  | W60: 0 | AB60: 34
A61: 55 | B61: =IF('DATA SISWA'!D67=0,"",'DATA SISWA'!D67) ->  | W61: =SUM(C61:T61) -> 0 | X61: =IF(ISERROR(AVERAGE(C61:T61)),"",AVERAGE(C61:T61)) ->  | AB61: 34
A62: 56 | B62: =IF('DATA SISWA'!D68=0,"",'DATA SISWA'!D68) ->  | W62: =SUM(C62:T62) -> 0 | X62: =IF(ISERROR(AVERAGE(C62:T62)),"",AVERAGE(C62:T62)) ->  | AB62: 34
A63: 57 | B63: =IF('DATA SISWA'!D69=0,"",'DATA SISWA'!D69) ->  | W63: =SUM(C63:T63) -> 0 | X63: =IF(ISERROR(AVERAGE(C63:T63)),"",AVERAGE(C63:T63)) ->  | AB63: 34
A64: 58 | B64: =IF('DATA SISWA'!D70=0,"",'DATA SISWA'!D70) ->  | W64: =SUM(C64:T64) -> 0 | X64: =IF(ISERROR(AVERAGE(C64:T64)),"",AVERAGE(C64:T64)) ->  | AB64: 34
A65: 59 | B65: =IF('DATA SISWA'!D71=0,"",'DATA SISWA'!D71) ->  | W65: =SUM(C65:T65) -> 0 | X65: =IF(ISERROR(AVERAGE(C65:T65)),"",AVERAGE(C65:T65)) ->  | AB65: 34
A66: 60 | B66: =IF('DATA SISWA'!D72=0,"",'DATA SISWA'!D72) ->  | W66: =SUM(C66:T66) -> 0 | X66: =IF(ISERROR(AVERAGE(C66:T66)),"",AVERAGE(C66:T66)) ->  | AB66: 34
A67: NILAI TERTINGGI | C67: =MAX(C7:C39) -> 85 | D67: =MAX(D7:D39) -> 95 | E67: 85 | F67: 76 | G67: 70 | H67: 80 | I67: 77 | J67: 90 | K67: 75 | L67: 78 | M67: 90 | N67: 85 | O67: 70 | P67: 70 | Q67: 90 | R67: 70 | S67: 0 | T67: 0 | U67: 0 | V67: 0 | W67: 1242 | X67: 77.625 | Y67: 0 | Z67: 0 | AA67: 0 | AB67: 33
A68: NILAI TERENDAH | C68: =MIN(C7:C39) -> 60 | D68: =MIN(D7:D39) -> 25 | E68: 70 | F68: 22 | G68: 70 | H68: 60 | I68: 35 | J68: 55 | K68: 60 | L68: 60 | M68: 70 | N68: 80 | O68: 20 | P68: 60 | Q68: 63 | R68: 60 | S68: 0 | T68: 0 | U68: 0 | V68: 0 | W68: 915 | X68: 57.1875 | Y68: 0 | Z68: 0 | AA68: 0 | AB68: 1
A69: JUMLAH | C69: =SUM(C7:C39) -> 2665 | D69: =SUM(D7:D39) -> 1891 | E69: 2667.5 | F69: 1391 | G69: 2310 | H69: 2370 | I69: 1515 | J69: 2471.166667 | K69: 2315 | L69: 2344 | M69: 2462 | N69: 2655 | O69: 1420 | P69: 2230 | Q69: 2363 | R69: 2140 | S69: 0 | T69: 0 | U69: 0 | V69: 0 | W69: 35209.66667 | X69: 2200.604167 | Y69: 0 | Z69: 0 | AA69: 0 | AB69: 561
A70: RATA-RATA | C70: =AVERAGE(C7:C39) -> 80.75757576 | D70: =AVERAGE(D7:D39) -> 57.3030303 | E70: 80.83333333 | F70: 42.15151515 | G70: 70 | H70: 71.81818182 | I70: 45.90909091 | J70: 74.88383838 | K70: 70.15151515 | L70: 71.03030303 | M70: 74.60606061 | N70: 80.45454545 | O70: 43.03030303 | P70: 67.57575758 | Q70: 71.60606061 | R70: 64.84848485 | W70: 1066.959596 | X70: 66.68497475 | AB70: 17
B72: Mengetahui, | O72: =RAPOR!I49 -> LABRUK KIDUL, 28 APRIL 2018
B73: Kepala madrasah | O73: ="Wali Kelas "&'DATA SISWA'!E4 -> Wali Kelas IV (EMPAT) A
B77: ='DATA SISWA'!E3 -> SAHRONI,S.Pd.I | O77: ='DATA SISWA'!E5 -> CHUSNI KURNIAWAN,S.Pd.

Sheet RAPOR
A8: DAFTAR NILAI
A9: ='DATA SISWA'!L6 -> UJIAN TENGAH SEMESTER II (GENAP)
A10: ='DATA SISWA'!L7 -> TAHUN PELAJARAN 2017/2018
A12: N a m a | D12: : | E12: =UPPER(VLOOKUP($K$12,'DATA SISWA'!$A$13:$P$72,4,0)) -> INES ARIFANI MAULINA | K12: 25
A13: Tempat,Tanggal Lahir | D13: : | E13: =PROPER(VLOOKUP($K$12,'DATA SISWA'!$A$13:$P$72,12,0)) -> Lumajang, 04 April 2008
A14: Nama Orang Tua | D14: : | E14: =PROPER(VLOOKUP($K$12,'DATA SISWA'!$A$13:$P$72,8,0)) -> Mohamad Badri
A15: Nomor Induk | D15: : | E15: =VLOOKUP($K$12,'DATA SISWA'!$A$13:$P$72,3,0) -> 4634
A16: NISN | D16: : | E16: =IF(VLOOKUP($K$12,'DATA SISWA'!$A$13:$P$72,2,0)=0,"-",VLOOKUP($K$12,'DATA SISWA'!$A$13:$P$72,2,0)) -> 0081758949
A18: NO | B18: Mata Pelajaran | F18: NILAI | G18: KKM | H18: Predikat | I18: DESKRIPSI
F19: UTS
A20: 1. | B20: Pendidikan Agama | H20: =IF(F20<G20,"C",IF(F20>G20,"B","")) -> 
B21: a. | C21: =IF(KKM!B3=0,"",KKM!B3) -> Alquran Hadits | F21: =IF(VLOOKUP($K$12,'REKAP NILAI'!$A$7:$AB$41,3,0)=0,"",VLOOKUP($K$12,'REKAP NILAI'!$A$7:$AB$41,3,0)) -> 85 | G21: =IF(KKM!D3="","",KKM!D3) -> 70 | H21: =IF(F21<40,"D",IF(F21<G21,"C",IF(F21<80,"B","A"))) -> A | I21: ="ananda "&VLOOKUP($K$12,'DATA SISWA'!$A$13:$P$72,5,0)&" "&IF(RAPOR!H21="D","Kurang",IF(RAPOR!H21="C","Cukup",IF(RAPOR!H21="B","Baik",IF(RAPOR!H21="A","Sangat Baik",""))))&" dalam mengartikan dan memahami isi materi "&C21 -> ananda INES Sangat Baik dalam mengartikan dan memahami isi materi Alquran Hadits
B22: b. | C22: =IF(KKM!B4=0,"",KKM!B4) -> Aqidah Akhlak | F22: =IF(VLOOKUP($K$12,'REKAP NILAI'!$A$7:$AB$41,5,0)=0,"",VLOOKUP($K$12,'REKAP NILAI'!$A$7:$AB$41,5,0)) -> 75 | G22: =IF(KKM!D4="","",KKM!D4) -> 70 | H22: B | I22: ="ananda "&VLOOKUP($K$12,'DATA SISWA'!$A$13:$P$72,5,0)&" "&IF(RAPOR!H22="D","Kurang",IF(RAPOR!H22="C","Cukup",IF(RAPOR!H22="B","Baik",IF(RAPOR!H22="A","Sangat Baik",""))))&" dalam mengartikan dan memahami isi materi "&C22 -> ananda INES Baik dalam mengartikan dan memahami isi materi Aqidah Akhlak
B23: c. | C23: =IF(KKM!B5=0,"",KKM!B5) -> Fiqih | F23: =IF(VLOOKUP($K$12,'REKAP NILAI'!$A$7:$AB$41,5,0)=0,"",VLOOKUP($K$12,'REKAP NILAI'!$A$7:$AB$41,5,0)) -> 75 | G23: =IF(KKM!D5="","",KKM!D5) -> 70 | H23: B | I23: ="ananda "&VLOOKUP($K$12,'DATA SISWA'!$A$13:$P$72,5,0)&" "&IF(RAPOR!H23="D","Kurang",IF(RAPOR!H23="C","Cukup",IF(RAPOR!H23="B","Baik",IF(RAPOR!H23="A","Sangat Baik",""))))&" dalam mengartikan dan memahami isi materi "&C23 -> ananda INES Baik dalam mengartikan dan memahami isi materi Fiqih
B24: d. | C24: =IF(KKM!B6=0,"",KKM!B6) -> Sejarah Kebudayaan Islam | F24: =IF(VLOOKUP($K$12,'REKAP NILAI'!$A$7:$AB$41,6,0)=0,"",VLOOKUP($K$12,'REKAP NILAI'!$A$7:$AB$41,6,0)) -> 31 | G24: =IF(KKM!D6="","",KKM!D6) -> 70 | H24: D | I24: ="ananda "&VLOOKUP($K$12,'DATA SISWA'!$A$13:$P$72,5,0)&" "&IF(RAPOR!H24="D","Kurang",IF(RAPOR!H24="C","Cukup",IF(RAPOR!H24="B","Baik",IF(RAPOR!H24="A","Sangat Baik",""))))&" dalam mengartikan dan memahami isi materi "&C24 -> ananda INES Kurang dalam mengartikan dan memahami isi materi Sejarah Kebudayaan Islam
A25: 2 | B25: =KKM!A7 -> PPKn | F25: =IF(VLOOKUP($K$12,'REKAP NILAI'!$A$7:$AB$41,7,0)=0,"",VLOOKUP($K$12,'REKAP NILAI'!$A$7:$AB$41,7,0)) -> 70 | G25: =IF(KKM!D7="","",KKM!D7) -> 70 | H25: B | I25: ="ananda "&VLOOKUP($K$12,'DATA SISWA'!$A$13:$P$72,5,0)&" "&IF(RAPOR!H25="D","Kurang",IF(RAPOR!H25="C","Cukup",IF(RAPOR!H25="B","Baik",IF(RAPOR!H25="A","Sangat Baik","")))&" dalam mengartikan dan memahami isi materi "&B25) -> ananda INES Baik dalam mengartikan dan memahami isi materi PPKn
A26: 3 | B26: =KKM!A8 -> B.Indonesia | F26: =IF(VLOOKUP($K$12,'REKAP NILAI'!$A$7:$AB$41,8,0)=0,"",VLOOKUP($K$12,'REKAP NILAI'!$A$7:$AB$41,8,0)) -> 70 | G26: =IF(KKM!D8="","",KKM!D8) -> 70 | H26: B | I26: ="ananda "&VLOOKUP($K$12,'DATA SISWA'!$A$13:$P$72,5,0)&" "&IF(RAPOR!H26="D","Kurang",IF(RAPOR!H26="C","Cukup",IF(RAPOR!H26="B","Baik",IF(RAPOR!H26="A","Sangat Baik",""))))&" dalam mengartikan dan memahami isi materi "&B26 -> ananda INES Baik dalam mengartikan dan memahami isi materi B.Indonesia
A27: 4 | B27: =KKM!A9 -> B. Arab | F27: =IF(VLOOKUP($K$12,'REKAP NILAI'!$A$7:$AB$41,9,0)=0,"",VLOOKUP($K$12,'REKAP NILAI'!$A$7:$AB$41,9,0)) -> 41 | G27: =IF(KKM!D9="","",KKM!D9) -> 70 | H27: C | I27: ="ananda "&VLOOKUP($K$12,'DATA SISWA'!$A$13:$P$72,5,0)&" "&IF(RAPOR!H27="D","Kurang",IF(RAPOR!H27="C","Cukup",IF(RAPOR!H27="B","Baik",IF(RAPOR!H27="A","Sangat Baik",""))))&" dalam mengartikan dan memahami isi materi "&B27 -> ananda INES Cukup dalam mengartikan dan memahami isi materi B. Arab
A28: 5 | B28: =KKM!A10 -> Matematika | F28: =IF(VLOOKUP($K$12,'REKAP NILAI'!$A$7:$AB$41,10,0)=0,"",VLOOKUP($K$12,'REKAP NILAI'!$A$7:$AB$41,10,0)) -> 85 | G28: =IF(KKM!D10="","",KKM!D10) -> 70 | H28: A | I28: ="ananda "&VLOOKUP($K$12,'DATA SISWA'!$A$13:$P$72,5,0)&" "&IF(RAPOR!H28="D","Kurang",IF(RAPOR!H28="C","Cukup",IF(RAPOR!H28="B","Baik",IF(RAPOR!H28="A","Sangat Baik",""))))&" dalam mengartikan dan memahami isi materi "&B28 -> ananda INES Sangat Baik dalam mengartikan dan memahami isi materi Matematika
A29: 6 | B29: =KKM!A11 -> IPA | F29: =IF(VLOOKUP($K$12,'REKAP NILAI'!$A$7:$AB$41,11,0)=0,"",VLOOKUP($K$12,'REKAP NILAI'!$A$7:$AB$41,11,0)) -> 70 | G29: =IF(KKM!D11="","",KKM!D11) -> 70 | H29: B | I29: ="ananda "&VLOOKUP($K$12,'DATA SISWA'!$A$13:$P$72,5,0)&" "&IF(RAPOR!H29="D","Kurang",IF(RAPOR!H29="C","Cukup",IF(RAPOR!H29="B","Baik",IF(RAPOR!H29="A","Sangat Baik",""))))&" dalam mengartikan dan memahami isi materi "&B29 -> ananda INES Baik dalam mengartikan dan memahami isi materi IPA
A30: 7 | B30: =KKM!A12 -> IPS | F30: =IF(VLOOKUP($K$12,'REKAP NILAI'!$A$7:$AB$41,12,0)=0,"",VLOOKUP($K$12,'REKAP NILAI'!$A$7:$AB$41,12,0)) -> 75 | G30: =IF(KKM!D12="","",KKM!D12) -> 70 | H30: B | I30: ="ananda "&VLOOKUP($K$12,'DATA SISWA'!$A$13:$P$72,5,0)&" "&IF(RAPOR!H30="D","Kurang",IF(RAPOR!H30="C","Cukup",IF(RAPOR!H30="B","Baik",IF(RAPOR!H30="A","Sangat Baik",""))))&" dalam mengartikan dan memahami isi materi "&B30 -> ananda INES Baik dalam mengartikan dan memahami isi materi IPS
A31: 8 | B31: =KKM!A13 -> Seni Budaya dan Prakarya | F31: =IF(VLOOKUP($K$12,'REKAP NILAI'!$A$7:$AB$41,13,0)=0,"",VLOOKUP($K$12,'REKAP NILAI'!$A$7:$AB$41,13,0)) -> 75 | G31: =IF(KKM!D13="","",KKM!D13) -> 75 | H31: B | I31: ="ananda "&VLOOKUP($K$12,'DATA SISWA'!$A$13:$P$72,5,0)&" "&IF(RAPOR!H31="D","Kurang",IF(RAPOR!H31="C","Cukup",IF(RAPOR!H31="B","Baik",IF(RAPOR!H31="A","Sangat Baik",""))))&" dalam mengartikan dan memahami isi materi "&B31 -> ananda INES Baik dalam mengartikan dan memahami isi materi Seni Budaya dan Prakarya
A32: 9 | B32: =KKM!A14 -> Pend. Jasmani OR & Kesehatan | F32: =IF(VLOOKUP($K$12,'REKAP NILAI'!$A$7:$AB$41,15,0)=0,"",VLOOKUP($K$12,'REKAP NILAI'!$A$7:$AB$41,14,0)) -> 80 | G32: =IF(KKM!D14="","",KKM!D14) -> 75 | H32: A | I32: ="ananda "&VLOOKUP($K$12,'DATA SISWA'!$A$13:$P$72,5,0)&" "&IF(RAPOR!H32="D","Kurang",IF(RAPOR!H32="C","Cukup",IF(RAPOR!H32="B","Baik",IF(RAPOR!H32="A","Sangat Baik",""))))&" dalam mengartikan dan memahami isi materi "&B32 -> ananda INES Sangat Baik dalam mengartikan dan memahami isi materi Pend. Jasmani OR & Kesehatan
A33: 10 | B33: =KKM!A15 -> Muatan Lokal :
B34: a. | C34: =KKM!B16 -> B. Daerah | F34: =IF(VLOOKUP($K$12,'REKAP NILAI'!$A$7:$AB$41,15,0)=0,"",VLOOKUP($K$12,'REKAP NILAI'!$A$7:$AB$41,15,0)) -> 50 | G34: =IF(KKM!D16="","",KKM!D16) -> 70 | H34: =IF(F34<40,"D",IF(F34<G34,"C",IF(F34<80,"B","A"))) -> C | I34: ="ananda "&VLOOKUP($K$12,'DATA SISWA'!$A$13:$P$72,5,0)&" "&IF(RAPOR!H34="D","Kurang",IF(RAPOR!H34="C","Cukup",IF(RAPOR!H34="B","Baik",IF(RAPOR!H34="A","Sangat Baik",""))))&" dalam mengartikan dan memahami isi materi "&C34 -> ananda INES Cukup dalam mengartikan dan memahami isi materi B. Daerah
B35: b. | C35: =KKM!B17 -> B. Inggris | F35: =IF(VLOOKUP($K$12,'REKAP NILAI'!$A$7:$AB$41,16,0)=0,"",VLOOKUP($K$12,'REKAP NILAI'!$A$7:$AB$41,16,0)) -> 70 | G35: =IF(KKM!D17="","",KKM!D17) -> 65 | H35: =IF(F35<40,"D",IF(F35<G35,"C",IF(F35<80,"B","A"))) -> B | I35: ="ananda "&VLOOKUP($K$12,'DATA SISWA'!$A$13:$P$72,5,0)&" "&IF(RAPOR!H35="D","Kurang",IF(RAPOR!H35="C","Cukup",IF(RAPOR!H35="B","Baik",IF(RAPOR!H35="A","Sangat Baik",""))))&" dalam mengartikan dan memahami isi materi "&C35 -> ananda INES Baik dalam mengartikan dan memahami isi materi B. Inggris
B36: c. | C36: =KKM!B18 -> Aswaja | F36: =IF(VLOOKUP($K$12,'REKAP NILAI'!$A$7:$AB$41,17,0)=0,"",VLOOKUP($K$12,'REKAP NILAI'!$A$7:$AB$41,17,0)) -> 70 | G36: =IF(KKM!D18="","",KKM!D18) -> 70 | H36: =IF(F36<40,"D",IF(F36<G36,"C",IF(F36<80,"B","A"))) -> B | I36: ="ananda "&VLOOKUP($K$12,'DATA SISWA'!$A$13:$P$72,5,0)&" "&IF(RAPOR!H36="D","Kurang",IF(RAPOR!H36="C","Cukup",IF(RAPOR!H36="B","Baik",IF(RAPOR!H36="A","Sangat Baik",""))))&" dalam mengartikan dan memahami isi materi "&C36 -> ananda INES Baik dalam mengartikan dan memahami isi materi Aswaja
B37: d. | C37: =KKM!B19 -> Nahwu-Shorof | F37: =IF(VLOOKUP($K$12,'REKAP NILAI'!$A$7:$AB$41,18,0)=0,"",VLOOKUP($K$12,'REKAP NILAI'!$A$7:$AB$41,18,0)) -> 70 | G37: =IF(KKM!D19="","",KKM!D19) -> 70 | H37: =IF(F37<40,"D",IF(F37<G37,"C",IF(F37<80,"B","A"))) -> B | I37: ="ananda "&VLOOKUP($K$12,'DATA SISWA'!$A$13:$P$72,5,0)&" "&IF(RAPOR!H37="D","Kurang",IF(RAPOR!H37="C","Cukup",IF(RAPOR!H37="B","Baik",IF(RAPOR!H37="A","Sangat Baik",""))))&" dalam mengartikan dan memahami isi materi "&C37 -> ananda INES Baik dalam mengartikan dan memahami isi materi Nahwu-Shorof
A38: 11 | B38: =IFERROR([1]Server!B37,"") -> Ektrakurikuler | I38: ="ananda "&VLOOKUP($K$12,'DATA SISWA'!$A$13:$P$72,5,0)&IF(RAPOR!H38="D","Kurang",IF(RAPOR!H38="C","Cukup",IF(RAPOR!H38="B","Baik",IF(RAPOR!H38="A","Sangat Baik","")&" dalam mengartikan dan memahami isi materi "&'REKAP NILAI'!C22))) -> ananda INES dalam mengartikan dan memahami isi materi 85
B39: =IFERROR([1]Server!B38,"") -> a. | C39: =IF(KKM!B22=0,"",KKM!B22) -> TIK | F39: =IF(VLOOKUP($K$12,'REKAP NILAI'!$A$7:$AB$41,19,0)=0,"",VLOOKUP($K$12,'REKAP NILAI'!$A$7:$AB$41,19,0)) ->  | G39: =IF(KKM!D22="","",KKM!D22) ->  | H39: =IF(F39<40,"D",IF(F39<G39,"C",IF(F39<80,"B",""))) ->  | I39: ="ananda "&VLOOKUP($K$12,'DATA SISWA'!$A$13:$P$72,5,0)&IF(RAPOR!H39="D","Kurang",IF(RAPOR!H39="C","Cukup",IF(RAPOR!H39="B","Baik",IF(RAPOR!H39="A","Sangat Baik","")&" dalam mengartikan dan memahami isi materi "&'REKAP NILAI'!C23))) -> ananda INES dalam mengartikan dan memahami isi materi 85
B40: =IFERROR([1]Server!B39,"") -> b. | C40: =IF(KKM!B23=0,"",KKM!B23) -> Ulangan | F40: =IF(VLOOKUP($K$12,'REKAP NILAI'!$A$7:$AB$41,20,0)=0,"",VLOOKUP($K$12,'REKAP NILAI'!$A$7:$AB$41,20,0)) ->  | G40: =IF(KKM!D23="","",KKM!D23) ->  | I40: ="ananda "&VLOOKUP($K$12,'DATA SISWA'!$A$13:$P$72,5,0)&IF(RAPOR!H40="D","Kurang",IF(RAPOR!H40="C","Cukup",IF(RAPOR!H40="B","Baik",IF(RAPOR!H40="A","Sangat Baik","")&" dalam mengartikan dan memahami isi materi "&'REKAP NILAI'!C24))) -> ananda INES dalam mengartikan dan memahami isi materi 85
B41: =IFERROR([1]Server!B40,"") -> c. | C41: =IF(KKM!B24=0,"",KKM!B24) ->  | F41: =IF(VLOOKUP($K$12,'REKAP NILAI'!$A$7:$AB$41,21,0)=0,"",VLOOKUP($K$12,'REKAP NILAI'!$A$7:$AB$41,21,0)) ->  | G41: =IF(KKM!D24="","",KKM!D24) ->  | I41: ="ananda "&VLOOKUP($K$12,'DATA SISWA'!$A$13:$P$72,5,0)&IF(RAPOR!H41="D","Kurang",IF(RAPOR!H41="C","Cukup",IF(RAPOR!H41="B","Baik",IF(RAPOR!H41="A","Sangat Baik","")&" dalam mengartikan dan memahami isi materi "&'REKAP NILAI'!C25))) -> ananda INES dalam mengartikan dan memahami isi materi 85
B42: =IFERROR([1]Server!B41,"") -> d. | C42: =IF(KKM!B25=0,"",KKM!B25) ->  | F42: =IF(VLOOKUP($K$12,'REKAP NILAI'!$A$7:$AB$41,22,0)=0,"",VLOOKUP($K$12,'REKAP NILAI'!$A$7:$AB$41,22,0)) ->  | G42: =IF(KKM!D25="","",KKM!D25) ->  | I42: ="ananda "&VLOOKUP($K$12,'DATA SISWA'!$A$13:$P$72,5,0)&IF(RAPOR!H42="D","Kurang",IF(RAPOR!H42="C","Cukup",IF(RAPOR!H42="B","Baik",IF(RAPOR!H42="A","Sangat Baik","")&" dalam mengartikan dan memahami isi materi "&'REKAP NILAI'!C26))) -> ananda INES dalam mengartikan dan memahami isi materi 85
A43: =IFERROR([1]Server!B42,"") -> JUMLAH | F43: =VLOOKUP($K$12,'REKAP NILAI'!$A$7:$AB$41,23,0) -> 1065
A44: =[1]Server!B43 -> RATA-RATA | F44: =VLOOKUP($K$12,'REKAP NILAI'!$A$7:$AB$41,24,0) -> 66.5625 | G44: =[1]Server!F43 -> RANGKING : | I44: =VLOOKUP($K$12,'REKAP NILAI'!$A$7:$AB$41,28,0) -> 17
C46: SAKIT | D46: : | E46: =IF(VLOOKUP($K$12,'REKAP NILAI'!$A$7:$AB$41,25,0)=0,"-",VLOOKUP($K$12,'REKAP NILAI'!$A$7:$AB$41,25,0)) -> - | H46: PESAN WALI KELAS :
C47: IJIN | D47: : | E47: =IF(VLOOKUP($K$12,'REKAP NILAI'!$A$7:$AB$41,26,0)=0,"-",VLOOKUP($K$12,'REKAP NILAI'!$A$7:$AB$41,26,0)) -> - | H47: =VLOOKUP($K$12,'DATA SISWA'!$A$13:$P$72,9,0) -> Pacu Semangat Belajarmu,& Tingkatkan nilaimu!
C48: ALPA | D48: : | E48: =IF(VLOOKUP($K$12,'REKAP NILAI'!$A$7:$AB$41,27,0)=0,"-",VLOOKUP($K$12,'REKAP NILAI'!$A$7:$AB$41,27,0)) -> - | H48: =VLOOKUP($K$12,'DATA SISWA'!$A$13:$P$72,10,0) -> -
I49: =UPPER('DATA SISWA'!E9) -> LABRUK KIDUL, 28 APRIL 2018
A50: WALI MURID | F50: KEPALA MADRASAH | I50: ='DATA SISWA'!L5 -> WALI KELAS IV (EMPAT) A
A54: _______________ | F54: ='DATA SISWA'!E3 -> SAHRONI,S.Pd.I | I54: ='DATA SISWA'!E5 -> CHUSNI KURNIAWAN,S.Pd.
A55: (ttd dan nama terang)

Sheet olahan nilai
A1: OLAHAN NILAI
A4: NO | B4: NAMA | C4: QH | G4: FQ | K4: PKN | O4: BID | S4: MTK | W4: IPA | AA4: IPS | AE4: SBDP(KTK) | AI4: BIG | AM4: AW
C5: 1 | D5: 2 | E5: PTS | F5: JML | G5: 1 | H5: 2 | I5: PTS | J5: JML | K5: 1 | L5: 2 | M5: PTS | N5: JML | O5: 1 | P5: 2 | Q5: PTS | R5: JML | S5: 1 | T5: 2 | U5: PTS | V5: JML | W5: 1 | X5: 2 | Y5: PTS | Z5: JML | AA5: 1 | AB5: 2 | AC5: PTS | AD5: JML | AE5: 1 | AF5: 2 | AG5: PTS | AH5: JML | AI5: 1 | AJ5: 2 | AK5: PTS | AL5: JML | AM5: 1 | AN5: 2 | AO5: PTS | AP5: JML
A6: 1 | B6: ACHMAD FATHIR IZUDDIN | C6: 90 | F6: =AVERAGE(C6:E6) -> 90 | G6: 70 | H6: 90 | J6: =AVERAGE(G6:I6) -> 80 | K6: 65 | N6: =AVERAGE(K6:M6) -> 65 | O6: 70 | P6: 80 | R6: 75 | S6: 80 | T6: 80 | V6: 80 | W6: 65 | Z6: =AVERAGE(W6:Y6) -> 65 | AA6: 65 | AD6: =AVERAGE(AA6:AC6) -> 65 | AE6: 70 | AH6: =AVERAGE(AE6:AG6) -> 70 | AI6: 70 | AL6: =AVERAGE(AI6:AK6) -> 70 | AM6: 63 | AP6: =AVERAGE(AM6:AO6) -> 63
A7: 2 | B7: ACHMAD SEPTIAN HAMDANI | C7: 60 | F7: =AVERAGE(C7:E7) -> 60 | G7: 80 | H7: 90 | J7: =AVERAGE(G7:I7) -> 85 | K7: 65 | N7: =AVERAGE(K7:M7) -> 65 | O7: 60 | R7: 60 | S7: 50 | T7: 70 | V7: 60 | W7: 65 | Z7: =AVERAGE(W7:Y7) -> 65 | AA7: 65 | AD7: =AVERAGE(AA7:AC7) -> 65 | AE7: 70 | AG7: 75 | AH7: =AVERAGE(AE7:AG7) -> 72.5 | AI7: 60 | AL7: =AVERAGE(AI7:AK7) -> 60 | AM7: 71 | AP7: =AVERAGE(AM7:AO7) -> 71
A8: 3 | B8: ACHMAD SULAIMAN | C8: 60 | F8: 60 | G8: 50 | H8: 90 | J8: 70 | K8: 65 | N8: 65 | O8: 60 | R8: 60 | S8: 50 | T8: 60 | V8: 55 | W8: 65 | Z8: 65 | AA8: 65 | AD8: 65 | AE8: 80 | AG8: 80 | AH8: 80 | AI8: 70 | AL8: 70 | AM8: 63 | AP8: 63
A9: 4 | B9: AININ NAFISA FEBRIYANTI | C9: 90 | F9: 90 | G9: 80 | H9: 90 | J9: 85 | K9: 65 | N9: 65 | O9: 70 | P9: 80 | Q9: 90 | R9: 80 | S9: 80 | T9: 80 | U9: 100 | V9: 86.66666667 | W9: 65 | Z9: 65 | AA9: 65 | AD9: 65 | AE9: 80 | AH9: 80 | AI9: 70 | AL9: 70 | AM9: 75 | AP9: 75
A10: 5 | B10: AISYAH DWI ANDINI | C10: 90 | F10: 90 | G10: 80 | H10: 90 | J10: 85 | K10: 65 | N10: 65 | O10: 70 | P10: 80 | Q10: 90 | R10: 80 | S10: 80 | T10: 70 | U10: 100 | V10: 83.33333333 | W10: 65 | Z10: 65 | AA10: 65 | AD10: 65 | AE10: 70 | AF10: 80 | AG10: 80 | AH10: 76.66666667 | AI10: 70 | AL10: 70 | AM10: 73 | AP10: 73
A11: 6 | B11: AJENG AGUSTINA KIRANA PUTRI | C11: 90 | F11: 90 | G11: 80 | H11: 90 | J11: 85 | K11: 65 | N11: 65 | O11: 70 | P11: 80 | Q11: 90 | R11: 80 | S11: 80 | T11: 70 | U11: 100 | V11: 83.33333333 | W11: 65 | Z11: 65 | AA11: 65 | AD11: 65 | AE11: 70 | AF11: 80 | AG11: 80 | AH11: 76.66666667 | AI11: 70 | AL11: 70 | AM11: 83 | AP11: 83
A12: 7 | B12: ALVIAN FAIZULHAQQI | C12: 90 | F12: 90 | G12: 80 | H12: 90 | J12: 85 | K12: 65 | N12: 65 | O12: 70 | P12: 80 | R12: 75 | S12: 76 | T12: 70 | U12: 100 | V12: 82 | W12: 65 | Z12: 65 | AA12: 65 | AD12: 65 | AE12: 90 | AF12: 70 | AH12: 80 | AI12: 60 | AL12: 60 | AM12: 77 | AP12: 77
A13: 8 | B13: ANGGITA RIZKY YUGA MEISYA | C13: 90 | F13: 90 | G13: 80 | H13: 90 | J13: 85 | K13: 65 | N13: 65 | O13: 70 | P13: 80 | R13: 75 | S13: 90 | T13: 70 | V13: 80 | W13: 65 | Z13: 65 | AA13: 65 | AD13: 65 | AE13: 70 | AH13: 70 | AI13: 70 | AL13: 70 | AM13: 90 | AP13: 90
A14: 9 | B14: AUFAN AZKAL ABRORI | C14: 90 | F14: 90 | G14: 80 | H14: 90 | J14: 85 | K14: 65 | N14: 65 | O14: 70 | R14: 70 | S14: 75 | T14: 70 | U14: 100 | V14: 81.66666667 | W14: 65 | Z14: 65 | AA14: 65 | AD14: 65 | AE14: 80 | AF14: 80 | AG14: 72 | AH14: 77.33333333 | AI14: 70 | AL14: 70 | AM14: 63 | AP14: 63
A15: 10 | B15: AURA SALSABILA WULAN SARI | C15: 90 | F15: 90 | G15: 80 | H15: 90 | J15: 85 | K15: 65 | N15: 65 | O15: 70 | R15: 70 | S15: 80 | T15: 80 | V15: 80 | W15: 65 | Z15: 65 | AA15: 65 | AD15: 65 | AE15: 90 | AG15: 79 | AH15: 84.5 | AI15: 70 | AL15: 70 | AM15: 88 | AP15: 88
A16: 11 | B16: AZZA PRISHAL DWI PUTRA | C16: 90 | F16: 90 | G16: 60 | H16: 90 | J16: 75 | K16: 65 | N16: 65 | O16: 70 | R16: 70 | S16: 75 | T16: 70 | V16: 72.5 | W16: 65 | Z16: 65 | AA16: 65 | AD16: 65 | AE16: 70 | AF16: 80 | AG16: 75 | AH16: 75 | AI16: 60 | AL16: 60 | AM16: 63 | AP16: 63
A17: 12 | B17: BALQIS NAILA AUDIA | C17: 90 | F17: 90 | G17: 80 | H17: 90 | J17: 85 | K17: 65 | N17: 65 | O17: 70 | P17: 80 | Q17: 90 | R17: 80 | S17: 90 | T17: 80 | U17: 100 | V17: 90 | W17: 65 | Z17: 65 | AA17: 65 | AD17: 65 | AE17: 70 | AH17: 70 | AI17: 70 | AL17: 70 | AM17: 88 | AP17: 88
A18: 13 | B18: BIMA SATRIA DIRGANTARA | C18: 90 | F18: 90 | G18: 80 | H18: 90 | J18: 85 | K18: 65 | N18: 65 | O18: 70 | R18: 70 | S18: 65 | T18: 80 | U18: 100 | V18: 81.66666667 | W18: 65 | Z18: 65 | AA18: 65 | AD18: 65 | AE18: 70 | AF18: 80 | AG18: 73 | AH18: 74.33333333 | AI18: 70 | AL18: 70 | AM18: 73 | AP18: 73
A19: 14 | B19: DEVI KARUNIA RATNA PUTRI | C19: 90 | F19: 90 | G19: 80 | H19: 90 | J19: 85 | K19: 65 | N19: 65 | O19: 70 | P19: 80 | Q19: 90 | R19: 80 | S19: 80 | T19: 80 | V19: 80 | W19: 65 | Z19: 65 | AA19: 65 | AD19: 65 | AE19: 70 | AF19: 80 | AH19: 75 | AI19: 70 | AL19: 70 | AM19: 83 | AP19: 83
A20: 15 | B20: DEVITA FEBRIANI PUTRI | C20: 90 | F20: 90 | G20: 80 | H20: 90 | J20: 85 | K20: 65 | N20: 65 | O20: 70 | Q20: 90 | R20: 80 | S20: 80 | T20: 80 | U20: 100 | V20: 86.66666667 | W20: 65 | Z20: 65 | AA20: 65 | AD20: 65 | AE20: 70 | AF20: 80 | AH20: 75 | AI20: 70 | AL20: 70 | AM20: 85 | AP20: 85
A21: 16 | B21: EKA AULIYA` PUTRI | C21: 90 | F21: 90 | G21: 60 | H21: 90 | J21: 75 | K21: 65 | N21: 65 | O21: 60 | R21: 60 | S21: 50 | T21: 80 | V21: 65 | W21: 65 | Z21: 65 | AA21: 65 | AD21: 65 | AE21: 70 | AG21: 77 | AH21: 73.5 | AI21: 70 | AL21: 70 | AM21: 77 | AP21: 77
A22: 17 | B22: ERSA PUSPITA EKA ROSA LINDA | C22: 90 | F22: 90 | G22: 65 | H22: 90 | J22: 77.5 | K22: 65 | N22: 65 | O22: 70 | R22: 70 | S22: 80 | T22: 80 | V22: 80 | W22: 65 | Z22: 65 | AA22: 65 | AD22: 65 | AE22: 70 | AH22: 70 | AI22: 60 | AL22: 60 | AM22: 65 | AP22: 65
A23: 18 | B23: FABIYAN TRI BAKTI OKTAFIAN | C23: 90 | F23: 90 | G23: 65 | H23: 90 | J23: 77.5 | K23: 65 | N23: 65 | O23: 70 | R23: 70 | S23: 60 | T23: 65 | V23: 62.5 | W23: 65 | Z23: 65 | AA23: 65 | AD23: 65 | AE23: 80 | AG23: 72 | AH23: 76 | AI23: 70 | AL23: 70 | AM23: 63 | AP23: 63
A24: 19 | B24: FAKHIS GABRIL LIA | C24: 90 | F24: 90 | G24: 80 | H24: 90 | J24: 85 | K24: 65 | N24: 65 | O24: 70 | R24: 70 | S24: 90 | T24: 80 | U24: 100 | V24: 90 | W24: 65 | Z24: 65 | AA24: 65 | AD24: 65 | AE24: 70 | AH24: 70 | AI24: 70 | AL24: 70 | AM24: 79 | AP24: 79
A25: 20 | B25: FELISITA APRILIA NUR NIHAYA | C25: 90 | F25: 90 | G25: 80 | H25: 90 | J25: 85 | K25: 65 | N25: 65 | O25: 70 | R25: 70 | S25: 70 | T25: 80 | U25: 100 | V25: 83.33333333 | W25: 65 | Z25: 65 | AA25: 65 | AD25: 65 | AE25: 70 | AH25: 70 | AI25: 70 | AL25: 70 | AM25: 73 | AP25: 73
A26: 21 | B26: FIRDA DWI ANDRIANI | C26: 90 | F26: 90 | G26: 80 | H26: 90 | J26: 85 | K26: 65 | N26: 65 | O26: 70 | R26: 70 | S26: 60 | T26: 60 | V26: 60 | W26: 65 | Z26: 65 | AA26: 65 | AD26: 65 | AE26: 70 | AH26: 70 | AI26: 70 | AL26: 70 | AM26: 63 | AP26: 63
A27: 22 | B27: GALANG MARDHOTILLAH SATOTO | C27: 90 | F27: 90 | G27: 70 | H27: 90 | J27: 80 | K27: 65 | N27: 65 | O27: 70 | R27: 70 | S27: 80 | T27: 80 | V27: 80 | W27: 65 | Z27: 65 | AA27: 65 | AD27: 65 | AE27: 90 | AF27: 80 | AH27: 85 | AI27: 70 | AL27: 70 | AM27: 67 | AP27: 67
A28: 23 | B28: GALIH FAREL PRASETYO | C28: 90 | F28: 90 | G28: 80 | H28: 90 | J28: 85 | K28: 65 | N28: 65 | O28: 70 | P28: 80 | R28: 75 | S28: 80 | T28: 60 | U28: 100 | V28: 80 | W28: 65 | Z28: 65 | AA28: 65 | AD28: 65 | AE28: 90 | AH28: 90 | AI28: 70 | AL28: 70 | AM28: 73 | AP28: 73
A29: 24 | B29: GILANG AKBAR PRASETYO | C29: 70 | F29: 70 | G29: 60 | H29: 90 | J29: 75 | K29: 65 | N29: 65 | O29: 70 | R29: 70 | S29: 70 | T29: 70 | V29: 70 | W29: 65 | Z29: 65 | AA29: 65 | AD29: 65 | AE29: 70 | AH29: 70 | AI29: 70 | AL29: 70 | AM29: 63 | AP29: 63
A30: 25 | B30: INES ARIFANI MAULINA | C30: 90 | F30: 90 | G30: 60 | H30: 90 | J30: 75 | K30: 65 | N30: 65 | O30: 70 | R30: 70 | S30: 90 | T30: 80 | V30: 85 | W30: 65 | Z30: 65 | AA30: 65 | AD30: 65 | AE30: 70 | AH30: 70 | AI30: 70 | AL30: 70 | AM30: 3 | AP30: 3
A31: 26 | B31: IKA KURNIA WATI AGUSTINA | C31: 90 | F31: 90 | G31: 75 | H31: 90 | J31: 82.5 | K31: 65 | N31: 65 | O31: 70 | P31: 80 | R31: 75 | S31: 60 | T31: 70 | U31: 100 | V31: 76.66666667 | W31: 65 | Z31: 65 | AA31: 65 | AD31: 65 | AE31: 70 | AH31: 70 | AI31: 70 | AL31: 70 | AM31: 64 | AP31: 64
A32: 27 | B32: IYAAD AFLAKHA RAMZII | C32: 90 | F32: 90 | G32: 70 | H32: 90 | J32: 80 | K32: 65 | N32: 65 | O32: 70 | R32: 70 | S32: 60 | T32: 60 | V32: 60 | W32: 65 | Z32: 65 | AA32: 65 | AD32: 65 | AE32: 70 | AH32: 70 | AI32: 70 | AL32: 70 | AM32: 71 | AP32: 71
A33: 28 | B33: JULI ANDRIYANTO | C33: 90 | F33: 90 | G33: 60 | H33: 90 | J33: 75 | K33: 65 | N33: 65 | O33: 70 | P33: 80 | R33: 75 | S33: 60 | T33: 80 | V33: 70 | W33: 65 | Z33: 65 | AA33: 65 | AD33: 65 | AE33: 70 | AH33: 70 | AI33: 60 | AL33: 60 | AM33: 63 | AP33: 63
A34: 29 | B34: M. RIZKY RIDWAN | C34: 90 | F34: 90 | G34: 60 | H34: 90 | J34: 75 | K34: 65 | N34: 65 | O34: 70 | R34: 70 | S34: 60 | T34: 60 | V34: 60 | W34: 65 | Z34: 65 | AA34: 65 | AD34: 65 | AE34: 70 | AH34: 70 | AI34: 60 | AL34: 60 | AM34: 63 | AP34: 63
A35: 30 | B35: MOCHAMAD RAFLI DIAN SAPUTRA | C35: 75 | F35: 75 | G35: 60 | H35: 90 | J35: 75 | K35: 65 | N35: 65 | O35: 70 | R35: 70 | S35: 75 | T35: 60 | V35: 67.5 | W35: 65 | Z35: 65 | AA35: 65 | AD35: 65 | AE35: 70 | AH35: 70 | AI35: 60 | AL35: 60 | AM35: 72 | AP35: 72
A36: 31 | B36: MUHAMMAD ALVIN RIDHO | C36: 90 | F36: 90 | G36: 70 | H36: 90 | J36: 80 | K36: 65 | N36: 65 | O36: 60 | P36: 80 | R36: 70 | S36: 80 | T36: 70 | U36: 100 | V36: 83.33333333 | W36: 65 | Z36: 65 | AA36: 65 | AD36: 65 | AE36: 80 | AG36: 75 | AH36: 77.5 | AI36: 60 | AL36: 60 | AM36: 73 | AP36: 73
A37: 32 | B37: STANY RAFIDAH RAHMANIA | C37: 90 | F37: 90 | G37: 70 | H37: 90 | J37: 80 | K37: 65 | N37: 65 | O37: 70 | R37: 70 | S37: 60 | T37: 60 | V37: 60 | W37: 65 | Z37: 65 | AA37: 65 | AD37: 65 | AE37: 70 | AG37: 80 | AH37: 75 | AI37: 70 | AL37: 70 | AM37: 63 | AP37: 63
A38: 33 | B38: USWATUN KHASANAH | C38: 60 | F38: 60 | G38: 60 | H38: 90 | J38: 75 | K38: 65 | N38: 65 | O38: 70 | R38: 70 | S38: 50 | T38: 60 | V38: 55 | W38: 65 | Z38: 65 | AA38: 65 | AD38: 65 | AE38: 70 | AH38: 70 | AI38: 70 | AL38: 70 | AM38: 63 | AP38: 63
U39: PR

Sheet HITUNGAN UTS (ABAIKAN)
A1: ROM1 | B1: 5 | C1: =D1*B1 -> 25 | D1: 5
A2: ROM2 | B2: 10 | C2: =D2/10*B2 -> 14 | D2: 14
D3: =SUM(C1:C2) -> 39

Sheet HITUNGAN UTS (ABAIKAN) (2)
B1: JML SOAL | C1: JML POIN | D1: POIN SEIMPURNA | E1: MASUKKAN SKOR | F1: MASUKKAN NILAINYA
A2: ROM1 | B2: 15 | C2: 1 | D2: =B2*C2 -> 15 | E2: 5 | F2: UNTUK ROM2
A3: ROM2 | B3: 5 | C3: 5 | D3: =B3*C3 -> 25 | E3: 5
A4: ROM3 | B4: 5 | C4: 10 | D4: 50 | E4: 5 | F4: 14 | G4: 1
D5: NILAI | E5: =SUM(E2:E4)/SUM(D2:D4)*100 -> 16.66666667 | F5: 1 | G5: 2
F6: 7 | G6: 3
F7: 3 | G7: 4
F8: =AVERAGE(H8:H10) -> 13.33333333 | G8: 5 | H8: 14
H9: 14
H10: 12
